fUSD/lending_fUSD_20240718
["ID","MTS","AMOUNT","RATE_DAILY","PERIOD"]
[332596119,1721326253451,-640.82,0.00032876,14]
[332596120,1721326253461,-500.0,0.00032876,14]
[332596121,1721326253470,-500.0,0.00032876,14]
[332596122,1721326253482,-500.0,0.00032876,14]
[332596123,1721326253493,-579.15777775,0.00032876,14]
[332596124,1721326253503,-500.0,0.00032876,14]
[332596125,1721326253513,-829.0,0.00032876,14]
[332596126,1721326253523,-4466.4,0.00032876,14]
[332596127,1721326253533,-1533.7,0.00032876,14]
[332596128,1721326253543,-3273.05,0.00032876,14]
[332596129,1721326253552,-500.0,0.00032876,14]
[332596130,1721326253562,-1164.99,0.00032876,14]
[332596131,1721326253572,-500.0,0.00032876,14]
[332596132,1721326253582,-500.0,0.00032876,14]
[332596133,1721326253591,-873.27,0.00032876,14]
[332596134,1721326253601,-500.0,0.00032876,14]
[332596135,1721326253610,-4731.79,0.00032876,14]
[332596136,1721326253620,-1112.77,0.00032876,14]
[332596137,1721326253630,-500.0,0.00032876,14]
[332596138,1721326253640,-500.0,0.00032876,14]
[332596139,1721326253649,-500.0,0.00032876,14]
[332596140,1721326253659,-1501.55,0.00032876,14]
[332596141,1721326253669,-988.73,0.00032876,14]
[332596142,1721326253679,-810.11,0.00032876,14]
[332596143,1721326253688,-1060.15,0.00032876,14]
[332596144,1721326253702,-500.0,0.00032876,14]
[332596145,1721326253712,-1628.9,0.00032876,14]
[332596146,1721326253722,-1771.19,0.00032876,14]
[332596147,1721326253731,-500.0,0.00032876,14]
[332596148,1721326253741,-500.0,0.00032876,14]
[332596149,1721326253751,-151.0,0.00032876,7]
[332596150,1721326253760,-3565.75,0.00032876,14]
[332596151,1721326253770,-1435.0,0.00032876,14]
[332596152,1721326253780,-500.0,0.00032876,14]
[332596153,1721326253791,-522.09,0.00032876,14]
[332596154,1721326253801,-2636.84,0.00032876,14]
[332596155,1721326253811,-500.0,0.00032876,14]
[332596156,1721326253820,-1863.31,0.00032876,14]
[332596157,1721326253831,-500.0,0.00032876,14]
[332596158,1721326253841,-5026.3,0.00032876,14]
[332596159,1721326253852,-500.0,0.00032876,14]
[332596160,1721326253861,-151.0,0.00032876,7]
[332596161,1721326253871,-2032.31,0.00032876,14]
[332596162,1721326253881,-151.0,0.00032876,7]
[332596163,1721326253891,-2122.65,0.00032876,14]
[332596164,1721326253901,-151.0,0.00032876,7]
[332596165,1721326253911,-151.0,0.00032876,7]
[332596166,1721326253920,-500.0,0.00032876,14]
[332596167,1721326253930,-500.0,0.00032876,14]
[332596168,1721326253941,-863.61,0.00032876,14]
[332596169,1721326253959,-1846.98,0.00032876,14]
[332596170,1721326253970,-500.0,0.00032876,14]
[332596171,1721326253981,-260.21633,0.00032876,7]
[332596172,1721326253991,-2098.55,0.00032876,14]
[332596173,1721326254002,-1715.09,0.00032876,14]
[332596174,1721326254012,-1104.17,0.00032876,14]
[332596175,1721326254022,-500.0,0.00032876,14]
[332596176,1721326254032,-1742.29,0.00032876,14]
[332596177,1721326254042,-500.0,0.00032876,14]
[332596178,1721326254052,-500.0,0.00032876,14]
[332596179,1721326254062,-500.0,0.00032876,14]
[332596180,1721326254072,-500.0,0.00032876,14]
[332596181,1721326254083,-1181.37,0.00032876,14]
[332596182,1721326254092,-852.78,0.00032876,14]
[332596183,1721326254102,-500.0,0.00032876,14]
[332596184,1721326254112,-2643.88,0.00032876,14]
[332596185,1721326254121,-500.0,0.00032876,14]
[332596186,1721326254131,-500.0,0.00032876,14]
[332596187,1721326254142,-3221.68,0.00032876,14]
[332596188,1721326254152,-715.23,0.00032876,14]
[332596189,1721326254166,-715.23,0.00032876,14]
[332596190,1721326254175,-715.23,0.00032876,14]
[332596191,1721326254185,-715.23,0.00032876,14]
[332596192,1721326254198,-715.23,0.00032876,14]
[332596193,1721326254209,-715.23,0.00032876,14]
[332596194,1721326254219,-2137.14,0.00032876,14]
[332596195,1721326254229,-715.23,0.00032876,14]
[332596196,1721326254241,-1135.51,0.00032876,14]
[332596197,1721326254251,-715.23,0.00032876,14]
[332596198,1721326254261,-1507.31,0.00032876,14]
[332596199,1721326254271,-715.23,0.00032876,14]
[332596200,1721326254282,-715.23,0.00032876,14]
[332596201,1721326254292,-635.96284505,0.00032876,14]
[332596202,1721326254302,-1494.43,0.00032876,14]
[332596203,1721326254311,-500.0,0.00032876,14]
[332596204,1721326254322,-1227.17,0.00032876,14]
[332596205,1721326254332,-526.21538224,0.00032876,14]
[332596206,1721326254342,-3469.86,0.00032876,14]
[332596207,1721326254352,-500.0,0.00032876,14]
[332596208,1721326254364,-500.0,0.00032876,14]
[332596209,1721326254374,-1430.44,0.00032876,14]
[332596210,1721326254384,-3443.76,0.00032876,14]
[332596211,1721326254393,-151.0,0.00032876,7]
[332596212,1721326254403,-500.0,0.00032876,14]
[332596213,1721326254412,-151.0,0.00032876,7]
[332596214,1721326254422,-151.0,0.00032876,7]
[332596215,1721326254431,-500.0,0.00032876,14]
[332596216,1721326254440,-151.0,0.00032876,7]
[332596217,1721326254453,-797.27,0.00032876,14]
[332596218,1721326254463,-151.0,0.00032876,7]
[332596219,1721326254472,-1232.54,0.00032876,14]
[332596220,1721326254482,-500.0,0.00032876,14]
[332596221,1721326254493,-500.0,0.00032876,14]
[332596222,1721326254502,-1308.58,0.00032876,14]
[332596223,1721326254512,-151.0,0.00032876,7]
[332596224,1721326254522,-500.0,0.00032876,14]
[332596225,1721326254532,-3137.36,0.00032876,14]
[332596226,1721326254542,-2632.34,0.00032876,14]
[332596227,1721326254553,-1121.74,0.00032876,14]
[332596228,1721326254563,-500.0,0.00032876,14]
[332596229,1721326254573,-1572.09,0.00032876,14]
[332596230,1721326254582,-3386.84,0.00032876,14]
[332596231,1721326254592,-500.0,0.00032876,14]
[332596232,1721326254602,-1333.29,0.00032876,14]
[332596233,1721326254612,-3037.85,0.00032876,14]
[332596234,1721326254622,-1381.51,0.00032876,14]
[332596235,1721326254632,-1858.22,0.00032876,14]
[332596236,1721326254642,-2701.88,0.00032876,14]
[332596237,1721326254652,-522.91,0.00032876,14]
[332596238,1721326254662,-500.0,0.00032876,14]
[332596239,1721326254671,-900.19,0.00032876,14]
[332596240,1721326254682,-500.0,0.00032876,14]
[332596241,1721326254692,-500.0,0.00032876,14]
[332596242,1721326254707,-2314.89,0.00032876,14]
[332596243,1721326254717,-4373.04,0.00032876,14]
[332596244,1721326254727,-1932.86,0.00032876,14]
[332596245,1721326254738,-2860.29,0.00032876,14]
[332596246,1721326254748,-500.0,0.00032876,14]
[332596247,1721326254759,-706.14,0.00032876,14]
[332596248,1721326254768,-1072.8575791,0.00032876,14]
[332596249,1721326254853,-80.4524209,0.00032876,14]
[332596250,1721326254862,-267.05414646,0.00032876,14]
[332596251,1721326255410,-280.8686649,0.00032876,14]
[332596252,1721326255419,-342.4111303,0.00032876,14]
[332596253,1721326255432,-497.0688697,0.00032876,14]
[332596254,1721326255442,-158.09205731,0.00032876,14]
[332596255,1721326256411,-366.407,0.00030541,2]
[332596256,1721326256422,-366.0,0.00032876,5]
[332596257,1721326256432,-341.90794269,0.00032876,14]
[332596258,1721326256442,-500.0,0.00032876,14]
[332596259,1721326256453,-279.62155731,0.00032876,14]
[332596260,1721326256464,-220.37844269,0.00032876,14]
[332596261,1721326256474,-2107.53,0.00032876,14]
[332596262,1721326256483,-151.0,0.00032876,7]
[332596263,1721326256492,-1164.02636249,0.00032876,14]
[332596264,1721326256503,-248.61363751,0.00032876,14]
[332596265,1721326256512,-144.43707249,0.00032876,14]
[332596266,1721326256527,-355.56292751,0.00032876,14]
[332596267,1721326256536,-542.39707363,0.00032876,14]
[332596268,1721326256551,-639.07292637,0.00032876,14]
[332596269,1721326256561,-151.0,0.00032876,7]
[332596270,1721326256571,-151.0,0.00032876,7]
[332596271,1721326256580,-1427.36,0.00032876,14]
[332596272,1721326256590,-151.0,0.00032876,7]
[332596273,1721326256600,-569.61231163,0.00032876,14]
[332596275,1721326958965,-332.27565264,0.00013594,2]
[332596276,1721326958993,-3583.0331,0.00013595,2]
[332596277,1721326967276,-385.0,0.00013694,2]
[332596278,1721326967305,-300.0,0.00013694,2]
[332596279,1721326967333,-13116.8377,0.00013695,2]
[332596280,1721327001741,-227.41308538,0.00013996,2]
[332596281,1721327001763,-264.48691462,0.00016,2]
[332596282,1721327025684,20000.0,0.00013695,2]
[332596283,1721327042030,-2100.0,0.00016,2]
[332596285,1721327157263,1282.78345768,0.0001358,2]
[332596301,1721327347562,949.60259577,0.0001358,2]
[332596319,1721327432287,-150.0,0.00013989,2]
[332596320,1721327432297,-91307.4301235,0.0001399,2]
[332596321,1721327432557,-44917.44006611,0.00014,2]
[332596322,1721327432592,-58771.25034392,0.00014,2]
[332596323,1721327432603,-392733.69715688,0.00014,2]
[332596324,1721327432613,-6386.09205608,0.000147,2]
[332596325,1721327432623,-19962.48085725,0.000148,2]
[332596326,1721327432638,-267.62549217,0.00015,14]
[332596327,1721327432648,-195.0,0.00015108,2]
[332596328,1721327432658,-2128.0798,0.000159,2]
[332596329,1721327432668,-2635.51308538,0.00016,2]
[332596330,1721327432677,-250.0,0.00016425,2]
[332596331,1721327432686,-791.33549647,0.0001646,2]
[332596332,1721327432695,-1024.63553683,0.0001646,2]
[332596333,1721327432704,-227.41308538,0.00016855,2]
[332596334,1721327432714,-6386.09205599,0.00016876,2]
[332596335,1721327432723,-1371.59346475,0.00016964,2]
[332596336,1721327432733,-19962.48085722,0.00016965,2]
[332596337,1721327432742,-5608.94443968,0.00017259,2]
[332596338,1721327432752,-3445.47650564,0.00017533,2]
[332596339,1721327432761,-1091.2439876,0.00017533,2]
[332596340,1721327432771,-346.76731995,0.00017795,2]
[332596341,1721327432780,-9130.74301235,0.00017796,2]
[332596342,1721327432789,-2279.10597725,0.00017803,3]
[332596343,1721327432798,-721.34365302,0.00017879,2]
[332596344,1721327432807,-5173.78103756,0.0001878,2]
[332596345,1721327432816,-6386.09205599,0.00019052,2]
[332596346,1721327432826,-19962.48085722,0.0001913,2]
[332596347,1721327432835,-674.86,0.00019636,2]
[332596348,1721327432844,-250.0,0.00019653,2]
[332596349,1721327432853,-188.4103101,0.0002,2]
[332596350,1721327432862,-327.58779712,0.0002,2]
[332596351,1721327432872,-401.31,0.0002053,2]
[332596352,1721327432881,-6386.09205599,0.00021228,2]
[332596353,1721327432891,-19962.48085722,0.00021294,2]
[332596354,1721327432901,-9130.74301235,0.00021634,3]
[332596355,1721327432911,-499.99,0.00021644,2]
[332596356,1721327432920,-154.04,0.00021644,2]
[332596357,1721327432930,-1079.44788604,0.00021917,2]
[332596358,1721327432939,-205.81,0.00021918,2]
[332596359,1721327432949,-674.86,0.00022091,2]
[332596360,1721327432958,-152.40015854,0.00022754,2]
[332596361,1721327432968,-401.31,0.00022794,2]
[332596362,1721327432978,-700.38501093,0.000232,2]
[332596363,1721327432987,-6386.09205599,0.00023404,2]
[332596364,1721327432997,-19962.48085722,0.00023459,2]
[332596365,1721327433007,-1927.92209274,0.0002354,2]
[332596366,1721327433016,-154.98095525,0.00023924,2]
[332596367,1721327433025,-2751.0,0.00024168,2]
[332596368,1721327433035,-674.86,0.00024545,2]
[332596369,1721327433045,-156.45941071,0.00024764,2]
[332596370,1721327433055,-401.31,0.00025058,2]
[332596371,1721327433065,-6386.09205599,0.00025579,2]
[332596372,1721327433075,-19962.48085722,0.00025624,2]
[332596373,1721327433085,-322.66,0.00026765,120]
[332596374,1721327433094,-674.86,0.00027,2]
[332596375,1721327433104,-250.0,0.00027055,2]
[332596376,1721327433113,-1783.01,0.00027055,2]
[332596377,1721327433122,-401.31,0.00027322,2]
[332596378,1721327433132,-6386.09205599,0.00027755,2]
[332596379,1721327433142,-19962.48085722,0.00027789,2]
[332596380,1721327433153,-153.58723867,0.00027935,2]
[332596381,1721327433163,-299.2,0.00027958,2]
[332596382,1721327433173,-193.53,0.00028079,30]
[332596383,1721327433183,-150.0,0.00028753,2]
[332596384,1721327433192,-200.0,0.00028819,2]
[332596385,1721327433201,-150.32699265,0.00028995,2]
[332596386,1721327433211,-162.71,0.00029,2]
[332596387,1721327433220,-213.08,0.00029095,120]
[332596388,1721327433229,-674.86,0.00029454,2]
[332596389,1721327433238,-401.31,0.00029586,2]
[332596390,1721327433248,-150.0,0.00029726,2]
[332596391,1721327433257,-331.88,0.00029735,2]
[332596392,1721327433266,-158.07,0.00029815,2]
[332596393,1721327433277,-351.0,0.00029868,2]
[332596394,1721327433286,-154.04,0.00029883,2]
[332596395,1721327433295,-6386.09205599,0.00029931,15]
[332596396,1721327433304,-19962.48085722,0.00029953,15]
[332596397,1721327433314,-218.0,0.0003,2]
[332596398,1721327433323,-322.66,0.00030111,120]
[332596399,1721327433333,-54784.4580741,0.00030537,5]
[332596400,1721327433342,-3413.15065636,0.00030537,5]
[332596401,1721327433352,-105654.0,0.00030547,2]
[332596402,1721327433362,-293.64006704,0.00030599,2]
[332596403,1721327433372,-150.0,0.00030699,2]
[332596404,1721327433381,-1706.57532818,0.00030963,5]
[332596405,1721327433391,-1313.98357786,0.00030974,30]
[332596406,1721327433402,-1406.27066977,0.0003121,2]
[332596407,1721327433412,-299.2,0.00031453,2]
[332596408,1721327433421,-180.0,0.00031616,2]
[332596409,1721327433431,-150.0,0.00031672,2]
[332596410,1721327433441,-2000.0,0.000318,2]
[332596411,1721327433451,-401.31,0.0003185,2]
[332596412,1721327433460,-155.0,0.00031885,4]
[332596413,1721327433470,-299.59792414,0.000319,2]
[332596414,1721327433480,-150.0,0.00032012,2]
[332596415,1721327433490,-6386.09205599,0.00032107,15]
[332596416,1721327433500,-19962.48085722,0.00032118,15]
[332596417,1721327433510,-9130.74301235,0.00032361,5]
[332596418,1721327433519,-1706.57532818,0.00032361,5]
[332596419,1721327433529,-334.5742,0.00032371,2]
[332596420,1721327433539,-342.586,0.00032371,2]
[332596421,1721327433554,-27392.229037,0.00032461,5]
[332596422,1721327433565,-3413.15065636,0.00032461,5]
[332596423,1721327433575,-17406.0597064,0.0003247,4]
[332596424,1721327433586,-5117.0,0.00032471,2]
[332596425,1721327433596,-1829.0,0.00032471,2]
[332596426,1721327433606,-5823.0,0.00032471,2]
[332596427,1721327433615,-1231.11,0.00032471,2]
[332596428,1721327433625,-310.66261491,0.00032508,2]
[332596429,1721327433636,-854.1422,0.0003255,2]
[332596430,1721327433647,-9130.74301235,0.00032588,5]
[332596431,1721327433656,-1706.57532818,0.00032588,5]
[332596432,1721327433666,-18261.4860247,0.00032589,5]
[332596433,1721327433676,-1706.57532818,0.00032589,5]
[332596434,1721327433685,-697.09,0.00032603,10]
[332596435,1721327433695,-500.0,0.00032613,2]
[332596436,1721327433704,-200.0,0.00032613,2]
[332596437,1721327433714,-2715.87612291,0.00032635,2]
[332596438,1721327433724,-150.0,0.00032645,2]
[332596439,1721327433734,-3000.0,0.00032681,14]
[332596440,1721327433743,-1559.971896,0.000327,2]
[332596441,1721327433753,-433.14726354,0.00032745,4]
[332596442,1721327433763,-1706.57532818,0.00032755,5]
[332596443,1721327433773,-2000.0,0.00032756,2]
[332596444,1721327433782,-321.44547856,0.00032766,2]
[332596445,1721327433791,-9130.74301235,0.00032766,5]
[332596446,1721327433801,-1706.57532818,0.00032766,5]
[332596447,1721327433811,-1000.0,0.00032776,2]
[332596448,1721327433820,-1235.6588,0.00032776,2]
[332596449,1721327433829,-11790.4693,0.00032776,2]
[332596450,1721327433839,-152.03045111,0.00032776,2]
[332596451,1721327433849,-6335.46723555,0.00032776,2]
[332596452,1721327433858,-150.0,0.000328,2]
[332596453,1721327433867,-258.0,0.000328,6]
[332596454,1721327433877,-310.66261492,0.00032801,2]
[332596455,1721327433887,-155.0,0.00032815,4]
[332596456,1721327433897,-9130.74301235,0.00032816,5]
[332596457,1721327433907,-1706.57532818,0.00032816,5]
[332596458,1721327433916,-9130.74301235,0.00032841,5]
[332596459,1721327433926,-179.70031025,0.00032846,4]
[332596460,1721327433936,-1719.02742377,0.00032847,120]
[332596461,1721327433945,-369.18293041,0.00032847,4]
[332596462,1721327433955,-876.50015893,0.00032848,4]
[332596463,1721327433965,-179.70031025,0.00032848,4]
[332596464,1721327433974,-18261.4860247,0.00032856,5]
[332596465,1721327433983,-16015.39087149,0.00032856,5]
[332596466,1721327434039,-1050.36241031,0.00032856,5]
[332596467,1721327434049,-207.7416166,0.00032865,10]
[332596468,1721327434058,-7560.06117549,0.00032866,5]
[332596469,1721327434069,-266.95294903,0.00032866,5]
[332596470,1721327434100,-2.48452609,0.00032866,5]
[332596471,1721327434111,-5823.10397479,0.00032866,5]
[332596472,1721327434120,-704.85523111,0.00032866,2]
[332596473,1721327434129,-911.8307941,0.00032866,2]
[332596474,1721327434180,-633.42674098,0.00032866,2]
[332596475,1721327434190,-85.00066648,0.00032874,4]
[332596476,1721327434202,-551.29288503,0.00032874,4]
[332596477,1721327434213,-582.92504737,0.00032874,4]
[332596478,1721327434224,-1217.02140112,0.00032874,4]
[332596479,1721327434233,-303.50037118,0.00032874,4]
[332596480,1721327434243,-194.69317522,0.00032875,2]
[332596481,1721327434252,-329.0,0.00032876,5]
[332596482,1721327434262,-809.73575064,0.00032876,2]
[332596483,1721327434272,-500.0,0.00032876,14]
[332596484,1721327434281,-246.06,0.00032876,7]
[332596485,1721327434291,-500.0,0.00032876,14]
[332596486,1721327434300,-200.0,0.00032876,14]
[332596487,1721327434309,-316.31326611,0.00032876,14]
[332596488,1721327434321,-183.68673389,0.00032876,14]
[332596489,1721327434331,-500.0,0.00032876,14]
[332596490,1721327434340,-1536.8,0.00032876,14]
[332596491,1721327434349,-500.0,0.00032876,14]
[332596492,1721327434359,-500.0,0.00032876,14]
[332596493,1721327434368,-502.67503772,0.00032876,14]
[332596494,1721327434388,-359.58496228,0.00032876,14]
[332596495,1721327434398,-451.91014675,0.00032876,14]
[332596496,1721327434407,-500.0,0.00032876,14]
[332596497,1721327434417,-743.75,0.00032876,14]
[332596498,1721327434428,-500.0,0.00032876,14]
[332596499,1721327434438,-500.0,0.00032876,14]
[332596500,1721327434447,-1457.65,0.00032876,14]
[332596501,1721327434457,-1080.42,0.00032876,14]
[332596502,1721327434466,-312.51065247,0.00032876,14]
[332596503,1721327434476,-1495.98,0.00032876,14]
[332596504,1721327434485,-1061.65715229,0.00032876,14]
[332596505,1721327434505,-307.8334,0.00032876,14]
[332596506,1721327434517,-483.33944771,0.00032876,14]
[332596507,1721327434526,-500.0,0.00032876,14]
[332596508,1721327434536,-341.42406385,0.00032876,14]
[332596509,1721327434556,-380.37593615,0.00032876,14]
[332596510,1721327434566,-191.24347284,0.00032876,14]
[332596511,1721327434577,-308.75652716,0.00032876,14]
[332596512,1721327434587,-500.0,0.00032876,14]
[332596513,1721327434597,-100.92343841,0.00032876,14]
[332596514,1721327434608,-399.07656159,0.00032876,14]
[332596515,1721327434618,-236.06343841,0.00032876,14]
[332596516,1721327434636,-1416.90656159,0.00032876,14]
[332596517,1721327434646,-500.0,0.00032876,14]
[332596518,1721327434656,-169.68145013,0.00032876,14]
[332596519,1721327434666,-1299.88,0.00032876,14]
[332596520,1721327434675,-283.0344301,0.00032876,14]
[332596521,1721327434691,-216.9655699,0.00032876,14]
[332596522,1721327434700,-500.0,0.00032876,14]
[332596523,1721327434710,-84.6144301,0.00032876,14]
[332596524,1721327434721,-415.3855699,0.00032876,14]
[332596525,1721327434731,-1090.62,0.00032876,14]
[332596526,1721327434740,-636.84953145,0.00032876,14]
[332596527,1721327434749,-643.36,0.00032876,14]
[332596528,1721327434758,-500.0,0.00032876,14]
[332596529,1721327434768,-500.0,0.00032876,14]
[332596530,1721327434778,-500.0,0.00032876,14]
[332596531,1721327434787,-512.59,0.00032876,14]
[332596532,1721327434796,-731.4,0.00032876,14]
[332596533,1721327434805,-500.0,0.00032876,14]
[332596534,1721327434815,-500.0,0.00032876,14]
[332596535,1721327434826,-500.0,0.00032876,14]
[332596536,1721327434835,-911.55,0.00032876,14]
[332596537,1721327434844,-594.55,0.00032876,14]
[332596538,1721327434853,-500.0,0.00032876,14]
[332596539,1721327434862,-843.65,0.00032876,14]
[332596540,1721327434872,-500.0,0.00032876,14]
[332596541,1721327434881,-500.0,0.00032876,14]
[332596542,1721327434890,-500.0,0.00032876,14]
[332596543,1721327434902,-500.0,0.00032876,14]
[332596544,1721327434911,-856.69,0.00032876,14]
[332596545,1721327434920,-500.0,0.00032876,14]
[332596546,1721327434929,-291.86464264,0.00032876,14]
[332596547,1721327434940,-500.0,0.00032876,14]
[332596548,1721327434949,-500.0,0.00032876,14]
[332596549,1721327434958,-500.0,0.00032876,14]
[332596550,1721327434967,-500.0,0.00032876,14]
[332596551,1721327434977,-500.0,0.00032876,14]
[332596552,1721327434986,-500.0,0.00032876,14]
[332596553,1721327434996,-500.0,0.00032876,14]
[332596554,1721327435006,-673.29,0.00032876,14]
[332596555,1721327435015,-1370.48,0.00032876,14]
[332596556,1721327435024,-500.0,0.00032876,14]
[332596557,1721327435033,-500.0,0.00032876,14]
[332596558,1721327435042,-500.0,0.00032876,14]
[332596559,1721327435051,-500.0,0.00032876,14]
[332596560,1721327435062,-645.35,0.00032876,14]
[332596561,1721327435071,-500.0,0.00032876,14]
[332596562,1721327435080,-654.49,0.00032876,14]
[332596563,1721327435089,-500.0,0.00032876,14]
[332596564,1721327435099,-500.0,0.00032876,14]
[332596565,1721327435108,-500.0,0.00032876,14]
[332596566,1721327435119,-500.0,0.00032876,14]
[332596567,1721327435131,-500.0,0.00032876,14]
[332596568,1721327435141,-500.0,0.00032876,14]
[332596569,1721327435153,-500.0,0.00032876,14]
[332596570,1721327435162,-500.0,0.00032876,14]
[332596571,1721327435171,-928.99,0.00032876,14]
[332596572,1721327435180,-500.0,0.00032876,14]
[332596573,1721327435189,-149.03156801,0.00032876,14]
[332596574,1721327435205,-350.96843199,0.00032876,14]
[332596575,1721327435214,-500.0,0.00032876,14]
[332596576,1721327435224,-500.0,0.00032876,14]
[332596577,1721327435235,-500.0,0.00032876,14]
[332596578,1721327435245,-500.0,0.00032876,14]
[332596579,1721327435254,-500.0,0.00032876,14]
[332596580,1721327435264,-500.0,0.00032876,14]
[332596581,1721327435274,-500.0,0.00032876,14]
[332596582,1721327435283,-1484.12,0.00032876,14]
[332596583,1721327435292,-536.43,0.00032876,2]
[332596584,1721327435301,-188.52352848,0.00032876,14]
[332596588,1721327437777,-329.36832994,0.000146,2]
[332596589,1721327437787,-1322.78,0.00019986,2]
[332596590,1721327437796,-1201.0,0.00032471,2]
[332596591,1721327437806,-546.85167006,0.00032744,2]
[332596592,1721327437817,-410.19142791,0.00032744,2]
[332596593,1721327437832,-295.87839058,0.00032744,2]
[332596594,1721327437842,-347.22587627,0.0003284,4]
[332596595,1721327437851,-1719.02742377,0.0003284,120]
[332596596,1721327437861,-232.51594487,0.00032846,4]
[332596597,1721327438128,-345.0,0.00032846,4]
[332596598,1721327438141,-298.98421406,0.00032846,4]
[332596599,1721327438153,-311.47647152,0.00032876,14]
[332596600,1721327438162,-500.0,0.00032876,14]
[332596601,1721327438172,-500.0,0.00032876,14]
[332596602,1721327438181,-282.13870465,0.00032876,14]
[332596603,1721327438192,-500.0,0.00032876,14]
[332596604,1721327438201,-500.0,0.00032876,14]
[332596605,1721327438211,-500.0,0.00032876,14]
[332596606,1721327438220,-500.0,0.00032876,14]
[332596607,1721327438230,-1670.5,0.00032876,14]
[332596608,1721327438240,-202.0423573,0.00032876,14]
[332596609,1721327438249,-800.32,0.00032876,14]
[332596610,1721327438259,-500.0,0.00032876,14]
[332596613,1721327438269,-961.11,0.00032876,14]
[332596616,1721327438278,-500.0,0.00032876,14]
[332596619,1721327438288,-500.0,0.00032876,14]
[332596623,1721327438298,-517.75883826,0.00032876,14]
[332596627,1721327438307,-500.0,0.00032876,14]
[332596630,1721327438316,-500.0,0.00032876,14]
[332596633,1721327438325,-500.0,0.00032876,14]
[332596636,1721327438335,-500.0,0.00032876,14]
[332596640,1721327438345,-500.0,0.00032876,14]
[332596642,1721327438354,-500.0,0.00032876,14]
[332596644,1721327438364,-151.0,0.00032876,7]
[332596646,1721327438373,-232.020325,0.00032876,7]
[332596648,1721327438383,-1599.05,0.00032876,14]
[332596650,1721327438392,-500.0,0.00032876,14]
[332596651,1721327438404,-500.0,0.00032876,14]
[332596652,1721327438413,-500.0,0.00032876,14]
[332596653,1721327438422,-151.0,0.00032876,7]
[332596654,1721327438433,-151.0,0.00032876,7]
[332596655,1721327438442,-500.0,0.00032876,14]
[332596656,1721327438452,-500.0,0.00032876,14]
[332596657,1721327438463,-500.0,0.00032876,14]
[332596658,1721327438472,-500.0,0.00032876,14]
[332596659,1721327438482,-1828.7,0.00032876,14]
[332596660,1721327438491,-500.0,0.00032876,14]
[332596661,1721327438500,-500.0,0.00032876,14]
[332596662,1721327438510,-1238.59,0.00032876,14]
[332596663,1721327438520,-500.0,0.00032876,14]
[332596664,1721327438529,-500.0,0.00032876,14]
[332596665,1721327438539,-151.0,0.00032876,7]
[332596666,1721327438550,-151.0,0.00032876,7]
[332596667,1721327438562,-500.0,0.00032876,14]
[332596668,1721327438571,-500.0,0.00032876,14]
[332596669,1721327438581,-151.0,0.00032876,7]
[332596670,1721327438591,-151.0,0.00032876,7]
[332596671,1721327438600,-500.0,0.00032876,14]
[332596672,1721327438610,-500.0,0.00032876,14]
[332596673,1721327438619,-1310.0,0.00032876,14]
[332596674,1721327438629,-500.0,0.00032876,14]
[332596675,1721327438639,-500.0,0.00032876,14]
[332596676,1721327438649,-500.0,0.00032876,14]
[332596677,1721327438659,-500.0,0.00032876,14]
[332596678,1721327438668,-500.0,0.00032876,14]
[332596679,1721327438677,-787.46,0.00032876,14]
[332596680,1721327438686,-500.0,0.00032876,14]
[332596681,1721327438695,-500.0,0.00032876,14]